[Event "November 21 Late 2023"]
[Site "https://www.chess.com"]
[Date "2023.11.21"]
[Round "10"]
[White "SergioMoralesG"]
[Black "Seletsky, Grigory"]
[Result "0-1"]
[Board "81"]
[TimeControl "180+1"]
[BlackFideId "14112191"]
[WhiteElo "2350"]
[BlackElo "2482"]
[BlackTeam "UKR"]
[WhiteClock "0:00:00"]
[BlackClock "0:01:16"]

1. d4 {[%clk 0:03:00]}  f5 {[%clk 0:02:45]} 2. c4 {[%clk 0:02:56]}  Nf6 {[%clk 0:02:45]} 3. Nf3 {[%clk 0:02:56]}  e6 {[%clk 0:02:43]} 4. g3 {[%clk 0:02:56]}  c6 {[%clk 0:02:43]} 5. Bg2 {[%clk 0:02:53]}  d5 {[%clk 0:02:43]} 6. b3 {[%clk 0:02:53]}  Bd6 {[%clk 0:02:42]} 7. O-O {[%clk 0:02:52]}  Qe7 {[%clk 0:02:40]} 8. a4 {[%clk 0:02:52]}  O-O {[%clk 0:02:41]} 9. Ba3 {[%clk 0:02:52]}  a5 {[%clk 0:02:41]} 10. Bxd6 {[%clk 0:02:50]}  Qxd6 {[%clk 0:02:42]} 11. Qc2 {[%clk 0:02:48]}  Ne4 {[%clk 0:02:41]} 12. Ne5 {[%clk 0:02:41]}  Na6 {[%clk 0:02:41]} 13. Nd2 {[%clk 0:02:35]}  Nb4 {[%clk 0:02:41]} 14. Qb2 {[%clk 0:02:36]}  b6 {[%clk 0:02:39]} 15. f3 {[%clk 0:02:30]}  Nxd2 {[%clk 0:02:37]} 16. Qxd2 {[%clk 0:02:31]}  c5 {[%clk 0:02:37]} 17. cxd5 {[%clk 0:02:23]}  cxd4 {[%clk 0:02:32]} 18. Nc4 {[%clk 0:02:17]}  Qc5 {[%clk 0:02:29]} 19. d6 {[%clk 0:02:11]}  Ba6 {[%clk 0:02:23]} 20. Rac1 {[%clk 0:02:05]}  Bxc4 {[%clk 0:02:21]} 21. Rxc4 {[%clk 0:02:06]}  Qxd6 {[%clk 0:02:20]} 22. Qxd4 {[%clk 0:02:02]}  Rad8 {[%clk 0:02:11]} 23. Qxd6 {[%clk 0:01:39]}  Rxd6 {[%clk 0:02:09]} 24. Rfc1 {[%clk 0:01:40]}  Rfd8 {[%clk 0:02:05]} 25. Rc8 {[%clk 0:01:38]}  Rxc8 {[%clk 0:02:03]} 26. Rxc8+ {[%clk 0:01:38]}  Kf7 {[%clk 0:02:03]} 27. Kf2 {[%clk 0:01:36]}  h5 {[%clk 0:02:00]} 28. h4 {[%clk 0:01:35]}  g6 {[%clk 0:02:00]} 29. Ke3 {[%clk 0:01:16]}  Na6 {[%clk 0:01:59]} 30. Rc3 {[%clk 0:01:04]}  Nc5 {[%clk 0:02:00]} 31. Kf2 {[%clk 0:00:48]}  Kf6 {[%clk 0:01:56]} 32. Ke1 {[%clk 0:00:47]}  e5 {[%clk 0:01:55]} 33. Bf1 {[%clk 0:00:47]}  f4 {[%clk 0:01:49]} 34. Kf2 {[%clk 0:00:41]}  g5 {[%clk 0:01:45]} 35. Bh3 {[%clk 0:00:38]}  Rd4 {[%clk 0:01:41]} 36. hxg5+ {[%clk 0:00:31]}  Kxg5 {[%clk 0:01:41]} 37. Bc8 {[%clk 0:00:27]}  Rb4 {[%clk 0:01:38]} 38. gxf4+ {[%clk 0:00:19]}  exf4 {[%clk 0:01:33]} 39. Rc1 {[%clk 0:00:07]}  Nxb3 {[%clk 0:01:25]} 40. Rg1+ {[%clk 0:00:06]}  Kf6 {[%clk 0:01:23]} 41. Bd7 {[%clk 0:00:05]}  Nc5 {[%clk 0:01:20]} 42. Bb5 {[%clk 0:00:05]}  Nxa4 {[%clk 0:01:19]} 43. Bc6 {[%clk 0:00:00]}  Nc3 {[%clk 0:01:16]} 0-1

[Event "November 21 Late 2023"]
[Site "https://www.chess.com"]
[Date "2023.11.21"]
[Round "10"]
[White "Pace, Christopher"]
[Black "Maect19"]
[Result "1-0"]
[Board "82"]
[TimeControl "180+1"]
[WhiteFideId "2610167"]
[WhiteElo "2419"]
[BlackElo "2345"]
[WhiteTeam "CAN"]
[WhiteClock "0:01:39"]
[BlackClock "0:00:39"]

1. e4 {[%clk 0:03:00]}  e5 {[%clk 0:02:58]} 2. Nf3 {[%clk 0:03:00]}  Nc6 {[%clk 0:02:58]} 3. Bb5 {[%clk 0:03:00]}  Nge7 {[%clk 0:02:56]} 4. O-O {[%clk 0:02:59]}  g6 {[%clk 0:02:56]} 5. c3 {[%clk 0:02:59]}  Bg7 {[%clk 0:02:56]} 6. d4 {[%clk 0:03:00]}  exd4 {[%clk 0:02:54]} 7. cxd4 {[%clk 0:03:01]}  O-O {[%clk 0:02:54]} 8. d5 {[%clk 0:02:51]}  Ne5 {[%clk 0:02:50]} 9. Nxe5 {[%clk 0:02:47]}  Bxe5 {[%clk 0:02:51]} 10. Nd2 {[%clk 0:02:48]}  a6 {[%clk 0:02:49]} 11. Bd3 {[%clk 0:02:47]}  d6 {[%clk 0:02:49]} 12. Nc4 {[%clk 0:02:44]}  Bg7 {[%clk 0:02:49]} 13. a4 {[%clk 0:02:45]}  Bd7 {[%clk 0:02:48]} 14. Re1 {[%clk 0:02:37]}  b5 {[%clk 0:02:48]} 15. axb5 {[%clk 0:02:33]}  axb5 {[%clk 0:02:48]} 16. Rxa8 {[%clk 0:02:34]}  Qxa8 {[%clk 0:02:47]} 17. Na3 {[%clk 0:02:34]}  b4 {[%clk 0:02:40]} 18. Nc4 {[%clk 0:02:34]}  Qa1 {[%clk 0:02:31]} 19. Bg5 {[%clk 0:02:29]}  Qxd1 {[%clk 0:02:28]} 20. Rxd1 {[%clk 0:02:30]}  Re8 {[%clk 0:02:26]} 21. Ra1 {[%clk 0:02:27]}  f5 {[%clk 0:02:22]} 22. f3 {[%clk 0:02:26]}  fxe4 {[%clk 0:02:11]} 23. fxe4 {[%clk 0:02:25]}  Nc8 {[%clk 0:02:10]} 24. Ra8 {[%clk 0:02:19]}  h6 {[%clk 0:01:36]} 25. Bd2 {[%clk 0:02:15]}  b3 {[%clk 0:01:36]} 26. Ra3 {[%clk 0:02:03]}  Bd4+ {[%clk 0:01:34]} 27. Kh1 {[%clk 0:01:55]}  Rf8 {[%clk 0:01:28]} 28. Bxh6 {[%clk 0:01:46]}  Rf2 {[%clk 0:01:24]} 29. h3 {[%clk 0:01:46]}  Bxb2 {[%clk 0:01:08]} 30. Rxb3 {[%clk 0:01:44]}  Bd4 {[%clk 0:01:07]} 31. Rb7 {[%clk 0:01:40]}  Bb6 {[%clk 0:00:52]} 32. Nxb6 {[%clk 0:01:39]}  Nxb6 {[%clk 0:00:53]} 33. Rxc7 {[%clk 0:01:39]}  Kh7 {[%clk 0:00:44]} 34. Be3 {[%clk 0:01:39]}  Rb2 {[%clk 0:00:39]} 35. Bxb6 {[%clk 0:01:39]} 1-0

[Event "November 21 Late 2023"]
[Site "https://www.chess.com"]
[Date "2023.11.21"]
[Round "10"]
[White "Hoffmann, Asa"]
[Black "Ferreira, Vitor Hugo Vieira"]
[Result "0-1"]
[Board "86"]
[TimeControl "180+1"]
[WhiteFideId "2001470"]
[BlackFideId "2119765"]
[WhiteElo "2117"]
[BlackElo "2123"]
[WhiteTeam "USA"]
[BlackTeam "BRA"]
[WhiteClock "0:00:00"]
[BlackClock "0:00:17"]

1. d4 {[%clk 0:02:43]}  d5 {[%clk 0:02:57]} 2. Bg5 {[%clk 0:02:42]}  c5 {[%clk 0:02:56]} 3. dxc5 {[%clk 0:02:40]}  Nc6 {[%clk 0:02:55]} 4. c3 {[%clk 0:02:39]}  a5 {[%clk 0:02:53]} 5. e4 {[%clk 0:02:36]}  Be6 {[%clk 0:02:43]} 6. Bb5 {[%clk 0:02:19]}  dxe4 {[%clk 0:02:41]} 7. Qa4 {[%clk 0:02:18]}  Qd5 {[%clk 0:02:39]} 8. Be3 {[%clk 0:02:14]}  Nf6 {[%clk 0:02:29]} 9. Ne2 {[%clk 0:02:13]}  Bd7 {[%clk 0:02:19]} 10. Nf4 {[%clk 0:02:11]}  Qf5 {[%clk 0:02:18]} 11. h3 {[%clk 0:02:05]}  h5 {[%clk 0:02:14]} 12. Nd2 {[%clk 0:02:04]}  e5 {[%clk 0:02:14]} 13. Ne2 {[%clk 0:02:00]}  Nd5 {[%clk 0:02:14]} 14. Ng3 {[%clk 0:01:50]}  Qg6 {[%clk 0:02:09]} 15. Ngxe4 {[%clk 0:01:45]}  Qxg2 {[%clk 0:02:03]} 16. O-O-O {[%clk 0:01:44]}  Nxe3 {[%clk 0:01:54]} 17. fxe3 {[%clk 0:01:40]}  Qg6 {[%clk 0:01:53]} 18. Rhg1 {[%clk 0:01:36]}  Qe6 {[%clk 0:01:44]} 19. Bc4 {[%clk 0:01:34]}  Qxh3 {[%clk 0:01:42]} 20. Bxf7+ {[%clk 0:01:33]}  Kd8 {[%clk 0:01:42]} 21. Nc4 {[%clk 0:01:27]}  Kc7 {[%clk 0:01:38]} 22. Nb6 {[%clk 0:01:17]}  Rd8 {[%clk 0:01:33]} 23. Bb3 {[%clk 0:01:06]}  Qf5 {[%clk 0:01:26]} 24. Rgf1 {[%clk 0:01:00]}  Nd4 {[%clk 0:01:11]} 25. Nxd7 {[%clk 0:00:49]}  Qxe4 {[%clk 0:00:47]} 26. exd4 {[%clk 0:00:41]}  Rxd7 {[%clk 0:00:44]} 27. Qxa5+ {[%clk 0:00:40]}  Kb8 {[%clk 0:00:44]} 28. Ba4 {[%clk 0:00:38]}  Rc7 {[%clk 0:00:39]} 29. Rde1 {[%clk 0:00:30]}  Qg2 {[%clk 0:00:33]} 30. Kb1 {[%clk 0:00:13]}  exd4 {[%clk 0:00:32]} 31. cxd4 {[%clk 0:00:13]}  Be7 {[%clk 0:00:30]} 32. Qc3 {[%clk 0:00:11]}  Bf6 {[%clk 0:00:28]} 33. Rd1 {[%clk 0:00:10]}  Rd8 {[%clk 0:00:28]} 34. Bb3 {[%clk 0:00:08]}  Rxd4 {[%clk 0:00:28]} 35. Rxf6 {[%clk 0:00:05]}  Rxd1+ {[%clk 0:00:28]} 36. Bxd1 {[%clk 0:00:04]}  gxf6 {[%clk 0:00:27]} 37. Qxf6 {[%clk 0:00:03]}  Rxc5 {[%clk 0:00:26]} 38. Qf8+ {[%clk 0:00:03]}  Rc8 {[%clk 0:00:26]} 39. Qf4+ {[%clk 0:00:02]}  Rc7 {[%clk 0:00:23]} 40. Qf8+ {[%clk 0:00:02]}  Ka7 {[%clk 0:00:23]} 41. Qa3+ {[%clk 0:00:02]}  Kb6 {[%clk 0:00:22]} 42. Qb4+ {[%clk 0:00:02]}  Kc6 {[%clk 0:00:20]} 43. Ba4+ {[%clk 0:00:00]}  Kd5 {[%clk 0:00:17]} 0-1

[Event "November 21 Late 2023"]
[Site "https://www.chess.com"]
[Date "2023.11.21"]
[Round "10"]
[White "ExchangeAB"]
[Black "Harish, Neeraj"]
[Result "1-0"]
[Board "89"]
[TimeControl "180+1"]
[BlackFideId "30958130"]
[WhiteElo "2460"]
[BlackElo "1866"]
[BlackTeam "USA"]
[WhiteClock "0:00:48"]
[BlackClock "0:01:30"]

1. Nf3 {[%clk 0:03:00]}  d5 {[%clk 0:02:57]} 2. e3 {[%clk 0:03:01]}  e6 {[%clk 0:02:58]} 3. b3 {[%clk 0:03:01]}  Nf6 {[%clk 0:02:59]} 4. Bb2 {[%clk 0:03:01]}  Be7 {[%clk 0:02:59]} 5. Be2 {[%clk 0:03:00]}  O-O {[%clk 0:03:00]} 6. O-O {[%clk 0:03:01]}  c5 {[%clk 0:03:00]} 7. d3 {[%clk 0:03:01]}  Nc6 {[%clk 0:03:01]} 8. Ne5 {[%clk 0:03:01]}  Nxe5 {[%clk 0:03:00]} 9. Bxe5 {[%clk 0:03:01]}  Bd6 {[%clk 0:03:01]} 10. Bxd6 {[%clk 0:03:01]}  Qxd6 {[%clk 0:03:01]} 11. Nd2 {[%clk 0:03:02]}  b6 {[%clk 0:03:02]} 12. c4 {[%clk 0:03:02]}  Bb7 {[%clk 0:03:03]} 13. Bf3 {[%clk 0:03:02]}  Rfd8 {[%clk 0:03:03]} 14. Qc2 {[%clk 0:03:02]}  Rac8 {[%clk 0:03:03]} 15. Rfd1 {[%clk 0:03:02]}  Qe7 {[%clk 0:03:01]} 16. Rac1 {[%clk 0:03:00]}  d4 {[%clk 0:02:59]} 17. Bxb7 {[%clk 0:02:56]}  Qxb7 {[%clk 0:02:58]} 18. e4 {[%clk 0:02:56]}  e5 {[%clk 0:02:56]} 19. a3 {[%clk 0:02:55]}  Qe7 {[%clk 0:02:52]} 20. Qb2 {[%clk 0:02:49]}  Ng4 {[%clk 0:02:50]} 21. h3 {[%clk 0:02:44]}  Nh6 {[%clk 0:02:46]} 22. b4 {[%clk 0:02:43]}  f5 {[%clk 0:02:45]} 23. bxc5 {[%clk 0:02:38]}  bxc5 {[%clk 0:02:43]} 24. Rb1 {[%clk 0:02:38]}  f4 {[%clk 0:02:42]} 25. Qb7 {[%clk 0:02:32]}  Qg5 {[%clk 0:02:40]} 26. Nf3 {[%clk 0:02:27]}  Qf6 {[%clk 0:02:39]} 27. Qxa7 {[%clk 0:02:21]}  Ra8 {[%clk 0:02:36]} 28. Qc7 {[%clk 0:02:15]}  Rdc8 {[%clk 0:02:33]} 29. Qxe5 {[%clk 0:01:51]}  Qxe5 {[%clk 0:02:31]} 30. Nxe5 {[%clk 0:01:52]}  Rxa3 {[%clk 0:02:31]} 31. Rb5 {[%clk 0:01:42]}  Nf7 {[%clk 0:02:25]} 32. Nd7 {[%clk 0:01:39]}  f3 {[%clk 0:02:15]} 33. gxf3 {[%clk 0:01:35]}  Ng5 {[%clk 0:02:12]} 34. Kg2 {[%clk 0:01:35]}  Rc6 {[%clk 0:02:11]} 35. f4 {[%clk 0:01:09]}  Nxe4 {[%clk 0:01:57]} 36. dxe4 {[%clk 0:01:06]}  Rg6+ {[%clk 0:01:58]} 37. Kh2 {[%clk 0:00:58]}  h5 {[%clk 0:01:32]} 38. Rb8+ {[%clk 0:00:48]}  Kh7 {[%clk 0:01:30]} 39. Nf8+ {[%clk 0:00:48]} 1-0

[Event "November 21 Late 2023"]
[Site "https://www.chess.com"]
[Date "2023.11.21"]
[Round "10"]
[White "seasidesunset"]
[Black "Pein, Jonathan"]
[Result "0-1"]
[Board "92"]
[TimeControl "180+1"]
[BlackFideId "417092"]
[WhiteElo "2182"]
[BlackElo "2192"]
[BlackTeam "ENG"]
[WhiteClock "0:00:00"]
[BlackClock "0:00:58"]

1. e4 {[%clk 0:03:00]}  e5 {[%clk 0:02:58]} 2. Nf3 {[%clk 0:02:57]}  d6 {[%clk 0:02:58]} 3. c3 {[%clk 0:02:51]}  Nf6 {[%clk 0:02:58]} 4. a4 {[%clk 0:02:47]}  Nxe4 {[%clk 0:02:53]} 5. Qe2 {[%clk 0:02:46]}  Nf6 {[%clk 0:02:52]} 6. d4 {[%clk 0:02:46]}  e4 {[%clk 0:02:52]} 7. Bg5 {[%clk 0:02:26]}  d5 {[%clk 0:02:46]} 8. Nbd2 {[%clk 0:02:24]}  Be7 {[%clk 0:02:43]} 9. Ne5 {[%clk 0:02:21]}  h6 {[%clk 0:02:35]} 10. Bf4 {[%clk 0:02:12]}  Nbd7 {[%clk 0:02:22]} 11. f3 {[%clk 0:01:53]}  exf3 {[%clk 0:02:17]} 12. gxf3 {[%clk 0:01:51]}  Nxe5 {[%clk 0:02:07]} 13. dxe5 {[%clk 0:01:50]}  Nh5 {[%clk 0:02:06]} 14. Bg3 {[%clk 0:01:43]}  Bh4 {[%clk 0:02:03]} 15. Rg1 {[%clk 0:01:30]}  Bf5 {[%clk 0:01:57]} 16. f4 {[%clk 0:01:14]}  Nxf4 {[%clk 0:01:55]} 17. Qf3 {[%clk 0:00:54]}  Qg5 {[%clk 0:01:43]} 18. O-O-O {[%clk 0:00:14]}  Bg4 {[%clk 0:01:26]} 19. Bxf4 {[%clk 0:00:10]}  Bxf3 {[%clk 0:01:25]} 20. Bxg5 {[%clk 0:00:11]}  Bxg5 {[%clk 0:01:26]} 21. Re1 {[%clk 0:00:08]}  Bh5 {[%clk 0:01:21]} 22. Bg2 {[%clk 0:00:05]}  O-O-O {[%clk 0:01:19]} 23. Bf3 {[%clk 0:00:03]}  Bxf3 {[%clk 0:01:18]} 24. Rxg5 {[%clk 0:00:04]}  hxg5 {[%clk 0:01:16]} 25. Nxf3 {[%clk 0:00:04]}  g4 {[%clk 0:01:16]} 26. Ng5 {[%clk 0:00:04]}  Rd7 {[%clk 0:01:13]} 27. Rg1 {[%clk 0:00:02]}  f5 {[%clk 0:01:07]} 28. exf6 {[%clk 0:00:02]}  gxf6 {[%clk 0:01:08]} 29. Ne6 {[%clk 0:00:02]}  f5 {[%clk 0:01:04]} 30. Nd4 {[%clk 0:00:02]}  Rf7 {[%clk 0:01:02]} 31. Rf1 {[%clk 0:00:01]}  Rxh2 {[%clk 0:01:01]} 32. Nxf5 {[%clk 0:00:00]}  Kd7 {[%clk 0:00:58]} 0-1

[Event "November 21 Late 2023"]
[Site "https://www.chess.com"]
[Date "2023.11.21"]
[Round "10"]
[White "Melikhov, Evgeny V."]
[Black "kinghunter183"]
[Result "1-0"]
[Board "94"]
[TimeControl "180+1"]
[WhiteFideId "4122046"]
[WhiteElo "2165"]
[BlackElo "2176"]
[WhiteTeam "GRE"]
[WhiteClock "0:00:19"]
[BlackClock "0:00:01"]

1. d4 {[%clk 0:02:59]}  e5 {[%clk 0:02:57]} 2. dxe5 {[%clk 0:02:58]}  Nc6 {[%clk 0:02:57]} 3. Nf3 {[%clk 0:02:53]}  Nge7 {[%clk 0:02:57]} 4. e4 {[%clk 0:02:43]}  Ng6 {[%clk 0:02:56]} 5. Bg5 {[%clk 0:02:42]}  Be7 {[%clk 0:02:55]} 6. Bxe7 {[%clk 0:02:42]}  Qxe7 {[%clk 0:02:56]} 7. Bd3 {[%clk 0:02:37]}  Ngxe5 {[%clk 0:02:48]} 8. Nxe5 {[%clk 0:02:37]}  Qxe5 {[%clk 0:02:49]} 9. Nc3 {[%clk 0:02:35]}  O-O {[%clk 0:02:42]} 10. O-O {[%clk 0:02:35]}  d6 {[%clk 0:02:43]} 11. Qe1 {[%clk 0:02:26]}  Nb4 {[%clk 0:02:39]} 12. f4 {[%clk 0:02:21]}  Qd4+ {[%clk 0:02:34]} 13. Qf2 {[%clk 0:02:21]}  Qxf2+ {[%clk 0:02:30]} 14. Rxf2 {[%clk 0:02:21]}  Nxd3 {[%clk 0:02:31]} 15. cxd3 {[%clk 0:02:21]}  Bd7 {[%clk 0:02:14]} 16. h3 {[%clk 0:02:11]}  Rae8 {[%clk 0:02:09]} 17. f5 {[%clk 0:02:09]}  Bc6 {[%clk 0:02:07]} 18. g4 {[%clk 0:02:05]}  d5 {[%clk 0:02:06]} 19. Re1 {[%clk 0:01:58]}  dxe4 {[%clk 0:02:05]} 20. dxe4 {[%clk 0:01:57]}  Re5 {[%clk 0:02:03]} 21. Kg2 {[%clk 0:01:53]}  Rd8 {[%clk 0:01:51]} 22. Kf3 {[%clk 0:01:49]}  Rd4 {[%clk 0:01:42]} 23. Rfe2 {[%clk 0:01:32]}  f6 {[%clk 0:01:32]} 24. Rd1 {[%clk 0:01:31]}  Rxd1 {[%clk 0:01:19]} 25. Nxd1 {[%clk 0:01:31]}  Kf7 {[%clk 0:01:03]} 26. Nc3 {[%clk 0:01:30]}  g6 {[%clk 0:01:01]} 27. Kf4 {[%clk 0:01:26]}  g5+ {[%clk 0:00:46]} 28. Ke3 {[%clk 0:01:19]}  b5 {[%clk 0:00:40]} 29. a3 {[%clk 0:01:17]}  a5 {[%clk 0:00:39]} 30. b4 {[%clk 0:01:17]}  axb4 {[%clk 0:00:39]} 31. axb4 {[%clk 0:01:17]}  Re7 {[%clk 0:00:38]} 32. Ra2 {[%clk 0:01:15]}  Ke8 {[%clk 0:00:27]} 33. Kd4 {[%clk 0:01:05]}  Kd7 {[%clk 0:00:25]} 34. Nd5 {[%clk 0:01:03]}  Bxd5 {[%clk 0:00:21]} 35. Kxd5 {[%clk 0:01:03]}  Re5+ {[%clk 0:00:19]} 36. Kd4 {[%clk 0:01:04]}  Kd6 {[%clk 0:00:16]} 37. Ra8 {[%clk 0:00:56]}  Re7 {[%clk 0:00:13]} 38. Rd8+ {[%clk 0:00:53]}  Kc6 {[%clk 0:00:12]} 39. Rf8 {[%clk 0:00:51]}  Rd7+ {[%clk 0:00:12]} 40. Kc3 {[%clk 0:00:45]}  Rd6 {[%clk 0:00:11]} 41. Rf7 {[%clk 0:00:43]}  Kb7 {[%clk 0:00:07]} 42. Rxh7 {[%clk 0:00:42]}  Rc6+ {[%clk 0:00:07]} 43. Kd3 {[%clk 0:00:42]}  Rc4 {[%clk 0:00:05]} 44. Rf7 {[%clk 0:00:41]}  Rxb4 {[%clk 0:00:06]} 45. Rxf6 {[%clk 0:00:41]}  Rb3+ {[%clk 0:00:06]} 46. Kd4 {[%clk 0:00:41]}  Rxh3 {[%clk 0:00:07]} 47. e5 {[%clk 0:00:26]}  b4 {[%clk 0:00:07]} 48. e6 {[%clk 0:00:20]}  b3 {[%clk 0:00:05]} 49. e7 {[%clk 0:00:20]}  b2 {[%clk 0:00:04]} 50. e8=Q {[%clk 0:00:20]}  b1=Q {[%clk 0:00:02]} 51. Qc6+ {[%clk 0:00:20]}  Ka7 {[%clk 0:00:01]} 52. Qa6+ {[%clk 0:00:19]}  Kb8 {[%clk 0:00:01]} 53. Rf8# {[%clk 0:00:19]} 1-0

[Event "November 21 Late 2023"]
[Site "https://www.chess.com"]
[Date "2023.11.21"]
[Round "10"]
[White "Buchenau, Frank"]
[Black "Vila Dupla, Aurelio"]
[Result "1-0"]
[Board "95"]
[TimeControl "180+1"]
[WhiteFideId "4604350"]
[BlackFideId "2203383"]
[WhiteElo "2157"]
[BlackElo "2009"]
[WhiteTeam "GER"]
[BlackTeam "ESP"]
[WhiteClock "0:01:05"]
[BlackClock "0:01:00"]

1. e4 {[%clk 0:02:52]}  c5 {[%clk 0:02:59]} 2. Nf3 {[%clk 0:02:51]}  d6 {[%clk 0:02:59]} 3. Bb5+ {[%clk 0:02:51]}  Nd7 {[%clk 0:02:58]} 4. O-O {[%clk 0:02:50]}  a6 {[%clk 0:02:58]} 5. Bd3 {[%clk 0:02:48]}  Ngf6 {[%clk 0:02:57]} 6. Re1 {[%clk 0:02:47]}  e6 {[%clk 0:02:57]} 7. c3 {[%clk 0:02:43]}  Be7 {[%clk 0:02:57]} 8. Bc2 {[%clk 0:02:42]}  O-O {[%clk 0:02:57]} 9. d4 {[%clk 0:02:42]}  cxd4 {[%clk 0:02:57]} 10. cxd4 {[%clk 0:02:42]}  e5 {[%clk 0:02:58]} 11. Nc3 {[%clk 0:02:40]}  b5 {[%clk 0:02:58]} 12. h3 {[%clk 0:02:28]}  Bb7 {[%clk 0:02:57]} 13. d5 {[%clk 0:02:27]}  b4 {[%clk 0:02:51]} 14. Na4 {[%clk 0:02:23]}  Ne8 {[%clk 0:02:07]} 15. Be3 {[%clk 0:02:18]}  Qb8 {[%clk 0:01:51]} 16. Nd2 {[%clk 0:02:10]}  Nc5 {[%clk 0:01:51]} 17. Bxc5 {[%clk 0:02:00]}  dxc5 {[%clk 0:01:50]} 18. Nb6 {[%clk 0:02:00]}  Ra7 {[%clk 0:01:49]} 19. Nd7 {[%clk 0:02:00]}  Qc7 {[%clk 0:01:47]} 20. Nxf8 {[%clk 0:02:00]}  Bxf8 {[%clk 0:01:46]} 21. Nc4 {[%clk 0:01:56]}  f6 {[%clk 0:01:41]} 22. Ba4 {[%clk 0:01:34]}  Nd6 {[%clk 0:01:40]} 23. Nxd6 {[%clk 0:01:32]}  Bxd6 {[%clk 0:01:40]} 24. Rc1 {[%clk 0:01:25]}  Bc8 {[%clk 0:01:28]} 25. Bc6 {[%clk 0:01:15]}  a5 {[%clk 0:01:28]} 26. a4 {[%clk 0:01:12]}  Ba6 {[%clk 0:01:21]} 27. Bb5 {[%clk 0:01:08]}  Bxb5 {[%clk 0:01:18]} 28. axb5 {[%clk 0:01:08]}  Qb6 {[%clk 0:01:18]} 29. Qg4 {[%clk 0:01:06]}  Qxb5 {[%clk 0:01:00]} 30. Qe6+ {[%clk 0:01:05]} 1-0

[Event "November 21 Late 2023"]
[Site "https://www.chess.com"]
[Date "2023.11.21"]
[Round "10"]
[White "zano2023"]
[Black "Tsiolakidis, Anastasios"]
[Result "0-1"]
[Board "96"]
[TimeControl "180+1"]
[BlackFideId "4201477"]
[WhiteElo "2204"]
[BlackElo "2261"]
[BlackTeam "GRE"]
[WhiteClock "0:00:31"]
[BlackClock "0:00:47"]

1. d4 {[%clk 0:03:00]}  c5 {[%clk 0:02:59]} 2. e3 {[%clk 0:03:00]}  cxd4 {[%clk 0:03:00]} 3. exd4 {[%clk 0:03:00]}  e5 {[%clk 0:03:01]} 4. Nf3 {[%clk 0:03:00]}  e4 {[%clk 0:03:01]} 5. Nfd2 {[%clk 0:02:57]}  f5 {[%clk 0:03:00]} 6. Nb3 {[%clk 0:02:50]}  Nf6 {[%clk 0:02:59]} 7. Nc3 {[%clk 0:02:49]}  d5 {[%clk 0:02:59]} 8. Bf4 {[%clk 0:02:45]}  Bd6 {[%clk 0:02:57]} 9. Qd2 {[%clk 0:02:44]}  a6 {[%clk 0:02:54]} 10. O-O-O {[%clk 0:02:32]}  O-O {[%clk 0:02:54]} 11. Nc5 {[%clk 0:02:32]}  b6 {[%clk 0:02:52]} 12. Nb3 {[%clk 0:02:27]}  Be6 {[%clk 0:02:52]} 13. h3 {[%clk 0:02:25]}  Nc6 {[%clk 0:02:47]} 14. Be2 {[%clk 0:02:20]}  Be7 {[%clk 0:02:41]} 15. Rdg1 {[%clk 0:02:13]}  Na5 {[%clk 0:02:26]} 16. Nxa5 {[%clk 0:01:52]}  bxa5 {[%clk 0:02:27]} 17. g4 {[%clk 0:01:52]}  Qb6 {[%clk 0:02:16]} 18. gxf5 {[%clk 0:01:37]}  Bxf5 {[%clk 0:02:11]} 19. Be5 {[%clk 0:01:36]}  Be6 {[%clk 0:01:56]} 20. h4 {[%clk 0:01:23]}  Rf7 {[%clk 0:01:44]} 21. h5 {[%clk 0:01:23]}  Rb8 {[%clk 0:01:36]} 22. Bxb8 {[%clk 0:01:21]}  Qxb8 {[%clk 0:01:37]} 23. Na4 {[%clk 0:01:13]}  Bb4 {[%clk 0:01:35]} 24. c3 {[%clk 0:01:12]}  Bf8 {[%clk 0:01:33]} 25. Nc5 {[%clk 0:01:12]}  Bd7 {[%clk 0:01:30]} 26. Nxa6 {[%clk 0:01:08]}  Qb6 {[%clk 0:01:27]} 27. Nc5 {[%clk 0:01:08]}  Bxc5 {[%clk 0:01:26]} 28. dxc5 {[%clk 0:01:09]}  Qxc5 {[%clk 0:01:27]} 29. h6 {[%clk 0:01:08]}  g6 {[%clk 0:01:26]} 30. Qd4 {[%clk 0:00:55]}  Qf8 {[%clk 0:01:22]} 31. Rg5 {[%clk 0:00:50]}  Be6 {[%clk 0:01:18]} 32. Re5 {[%clk 0:00:50]}  Re7 {[%clk 0:01:16]} 33. Qb6 {[%clk 0:00:47]}  Nd7 {[%clk 0:01:14]} 34. Qd6 {[%clk 0:00:46]}  Nxe5 {[%clk 0:01:13]} 35. Qxe5 {[%clk 0:00:45]}  Qxf2 {[%clk 0:00:53]} 36. Kd1 {[%clk 0:00:45]}  Qxe2+ {[%clk 0:00:50]} 37. Kxe2 {[%clk 0:00:43]}  Bg4+ {[%clk 0:00:50]} 38. Ke3 {[%clk 0:00:42]}  Rxe5 {[%clk 0:00:51]} 39. Kd4 {[%clk 0:00:42]}  Rf5 {[%clk 0:00:50]} 40. Rg1 {[%clk 0:00:42]}  Bf3 {[%clk 0:00:49]} 41. c4 {[%clk 0:00:40]}  dxc4 {[%clk 0:00:48]} 42. Kxc4 {[%clk 0:00:40]}  e3 {[%clk 0:00:48]} 43. Kd3 {[%clk 0:00:40]}  e2 {[%clk 0:00:49]} 44. Ke3 {[%clk 0:00:40]}  g5 {[%clk 0:00:49]} 45. Re1 {[%clk 0:00:39]}  g4 {[%clk 0:00:49]} 46. Kf2 {[%clk 0:00:39]}  Kf7 {[%clk 0:00:49]} 47. a3 {[%clk 0:00:37]}  Kg6 {[%clk 0:00:48]} 48. b4 {[%clk 0:00:37]}  axb4 {[%clk 0:00:49]} 49. axb4 {[%clk 0:00:37]}  Kxh6 {[%clk 0:00:48]} 50. Kg3 {[%clk 0:00:37]}  Kg5 {[%clk 0:00:48]} 51. Rh1 {[%clk 0:00:36]}  h5 {[%clk 0:00:48]} 52. Kf2 {[%clk 0:00:35]}  h4 {[%clk 0:00:48]} 53. Rh2 {[%clk 0:00:31]}  g3+ {[%clk 0:00:47]} 0-1